bitfinex-derivatives/quotes_BTCF0:USTF0_20260214
["timestamp","ask_amount","ask_price","bid_price","bid_amount"]
[1771089117854,0.014338,69773.0,69769.0,0.01444]
[1771089118549,0.028677,69772.0,69769.0,0.01444]
[1771089118748,0.014338,69772.0,69769.0,0.01444]
[1771089119749,0.028677,69772.0,69769.0,0.01444]
[1771089119952,0.014338,69772.0,69769.0,0.01444]
[1771089120554,0.014339,69767.0,69763.0,0.14344]
[1771089120750,0.014336,69783.0,69769.0,0.09496555]
[1771089121054,0.014337,69781.0,69776.0,0.014337]
[1771089121449,0.014337,69779.0,69775.0,0.01444]
[1771089121757,0.014337,69779.0,69775.0,0.028778]
[1771089122553,0.014337,69778.0,69775.0,0.01444]
[1771089122758,0.014337,69777.0,69775.0,0.01444]
[1771089123056,0.014338,69773.0,69768.0,0.014339]
[1771089123253,0.014338,69773.0,69769.0,0.15788]
[1771089123956,0.014337,69777.0,69772.0,0.014338]
[1771089124159,0.028776,69783.0,69779.0,0.014337]
[1771089124355,0.014336,69783.0,69779.0,0.014337]
[1771089124556,0.014336,69786.0,69778.0,0.014337]
[1771089124759,0.014336,69785.0,69777.0,0.01444]
[1771089124958,0.014337,69780.0,69777.0,0.01444]
[1771089125263,0.014336,69784.0,69779.0,0.014337]
[1771089125454,0.014336,69783.0,69779.0,0.028777]
[1771089125856,0.014335,69786.0,69781.0,0.014336]
[1771089127152,0.04791,69782.0,69781.0,0.014336]
[1771089128257,0.00459,69782.0,69781.0,0.014336]
[1771089128454,0.028775,69787.0,69782.0,0.014336]
[1771089129164,0.07728825,69802.0,69784.0,0.014336]
[1771089129463,0.014334,69793.0,69788.0,0.014335]
[1771089129754,0.014334,69793.0,69789.0,0.01444]
[1771089130159,0.014334,69794.0,69789.0,0.01444]
[1771089130354,0.014334,69794.0,69789.0,0.028775]
[1771089130554,0.014334,69793.0,69789.0,0.014335]
[1771089130762,0.014334,69793.0,69789.0,0.028775]
[1771089130961,0.014334,69793.0,69789.0,0.01444]
[1771089131354,0.014334,69793.0,69789.0,0.028775]
[1771089131555,0.014333,69796.0,69789.0,0.028775]
[1771089131853,0.01444,69797.0,69789.0,0.028775]
[1771089132051,0.02001,69798.0,69794.0,0.014334]
[1771089132463,0.034343,69798.0,69792.0,0.0144]
[1771089132663,0.014333,69797.0,69792.0,0.028734]
[1771089133260,0.014334,69795.0,69792.0,0.0144]
[1771089133858,0.014334,69794.0,69792.0,0.0144]
[1771089134056,0.014333,69797.0,69792.0,0.0144]
[1771089134360,0.014334,69796.0,69792.0,0.0144]
[1771089134558,0.014334,69795.0,69792.0,0.0144]
[1771089135558,0.014333,69797.0,69792.0,0.028734]
[1771089135865,0.014333,69796.0,69792.0,0.0144]
[1771089136553,0.014333,69797.0,69792.0,0.0144]
[1771089136756,0.014334,69796.0,69792.0,0.0144]
[1771089137063,0.014334,69796.0,69792.0,0.028734]
[1771089137868,0.014334,69795.0,69792.0,0.0144]
[1771089138467,0.013934,69795.0,69792.0,0.0144]
[1771089138964,0.014334,69794.0,69792.0,0.0144]
[1771089139264,0.014334,69795.0,69792.0,0.0144]
[1771089139868,0.014333,69796.0,69792.0,0.0144]
[1771089140166,0.014334,69794.0,69792.0,0.0144]
[1771089140366,0.02001,69798.0,69792.0,0.0144]
[1771089140568,0.014334,69796.0,69792.0,0.0144]
[1771089140866,0.014334,69795.0,69792.0,0.0144]
[1771089143269,0.014334,69796.0,69792.0,0.0144]
[1771089143565,0.014333,69797.0,69792.0,0.0144]
[1771089143962,0.014333,69797.0,69792.0,0.028734]
[1771089144463,0.02001,69798.0,69792.0,0.028734]
[1771089144668,0.014332,69806.0,69800.0,0.014332]
[1771089144870,0.0144,69807.0,69800.0,0.028664]
[1771089145165,0.0763988,69813.0,69799.0,0.014333]
[1771089145665,0.0907988,69812.0,69799.0,0.014333]
[1771089147171,0.0144,69812.0,69801.0,0.014332]
[1771089147559,0.0144,69812.0,69799.0,0.014333]
[1771089147764,0.0144,69812.0,69800.0,0.014332]
[1771089147970,0.0907988,69812.0,69801.0,0.014332]
[1771089150472,0.0907988,69812.0,69800.0,0.014333]
[1771089150972,0.0144,69812.0,69801.0,0.014332]
[1771089151474,0.0144,69812.0,69802.0,0.014332]
[1771089152073,0.0144,69812.0,69800.0,0.014333]
[1771089152273,0.0907988,69812.0,69801.0,0.014332]
[1771089152678,0.0907988,69812.0,69802.0,0.014332]
[1771089152979,0.0907988,69812.0,69800.0,0.014333]
[1771089153275,0.0907988,69812.0,69801.0,0.014332]
[1771089153476,0.0907988,69812.0,69802.0,0.014332]
[1771089153677,0.0907988,69812.0,69794.0,0.1434]
[1771089153678,0.0763988,69842.0,69805.0,0.07923221]
[1771089153979,0.0763988,69827.0,69814.0,0.01433]
[1771089154281,0.0763988,69827.0,69813.0,0.0144]
[1771089154282,0.0907988,69826.0,69813.0,0.0144]
[1771089154576,0.0907988,69826.0,69810.0,0.0144]
[1771089155776,0.0907988,69826.0,69812.0,0.01433]
[1771089155974,0.0907988,69826.0,69810.0,0.0144]
[1771089158276,0.0907988,69826.0,69811.0,0.01433]
[1771089158481,0.0907988,69826.0,69812.0,0.01433]
[1771089159084,0.0907988,69826.0,69810.0,0.0144]
[1771089159478,0.0907988,69826.0,69811.0,0.0144]
[1771089160489,0.0907988,69826.0,69816.0,0.014329]
[1771089160690,0.0907988,69826.0,69812.0,0.01433]
[1771089161289,0.0907988,69826.0,69814.0,0.01433]
[1771089161587,0.0907988,69826.0,69813.0,0.01433]
[1771089161982,0.0907988,69826.0,69811.0,0.0144]
[1771089162179,0.0907988,69826.0,69812.0,0.01433]
[1771089162383,0.0907988,69826.0,69815.0,0.014329]
[1771089164495,0.0907988,69826.0,69819.0,0.014329]
[1771089164695,0.0144,69826.0,69819.0,0.014329]
[1771089164886,0.0144,69826.0,69819.0,0.028658]
[1771089165087,0.0144,69826.0,69819.0,0.014329]
[1771089165286,0.0144,69826.0,69815.0,0.014329]
[1771089165490,0.0144,69826.0,69815.0,0.0144]
[1771089165690,0.09363614,69826.0,69815.0,0.0144]
[1771089168496,0.09363614,69826.0,69815.0,0.028729]
[1771089168684,0.09363614,69826.0,69816.0,0.014329]
[1771089170297,0.09363614,69826.0,69817.0,0.014329]
[1771089171091,0.09363614,69826.0,69816.0,0.014329]
[1771089171492,0.09363614,69826.0,69815.0,0.02873]
[1771089171694,0.09363614,69826.0,69816.0,0.014329]
[1771089172199,0.0144,69826.0,69817.0,0.014329]
[1771089172400,0.0144,69826.0,69816.0,0.014329]
[1771089172893,0.09363614,69826.0,69816.0,0.014329]
[1771089174000,0.09363614,69826.0,69815.0,0.0144]
[1771089174189,0.09363614,69826.0,69816.0,0.0144]
[1771089175389,0.09363614,69826.0,69816.0,0.028729]
[1771089175794,0.09363614,69826.0,69816.0,0.0144]
[1771089179003,0.09363614,69826.0,69815.0,0.0144]
[1771089179191,0.09363614,69826.0,69810.0,0.157691]
[1771089179192,0.09363614,69826.0,69814.0,0.0144]
[1771089180295,0.0144,69826.0,69819.0,0.014329]
[1771089180503,0.100332,69827.0,69818.0,0.0144]
[1771089180698,0.114732,69827.0,69823.0,0.014328]
[1771089180898,0.0144,69830.0,69824.0,0.014328]
[1771089181201,0.0144,69830.0,69822.0,0.014328]
[1771089182106,0.14336,69835.0,69827.0,0.014327]
[1771089182301,0.14336,69845.0,69828.0,0.0144]
[1771089182502,0.0144,69848.0,69836.0,0.014325]
[1771089182700,0.0144,69848.0,69841.0,0.014324]
[1771089183011,0.03069638,69866.0,69848.0,0.07879049]
[1771089183303,0.03069638,69866.0,69827.0,0.57344]
[1771089183304,0.03069638,69866.0,69852.0,0.014322]
[1771089183505,0.03069638,69866.0,69850.0,0.07879049]
[1771089183506,0.03069638,69866.0,69862.0,0.01432]
[1771089183803,0.014321,69858.0,69849.0,0.014323]
[1771089184001,0.01432,69860.0,69850.0,0.15776]
[1771089184200,0.03069638,69866.0,69856.0,0.07879049]
[1771089184405,0.10993252,69866.0,69857.0,0.0144]
[1771089184608,0.01432,69863.0,69857.0,0.0144]
[1771089184902,0.01432,69861.0,69857.0,0.0144]
[1771089185104,0.01432,69860.0,69857.0,0.0144]
[1771089185504,0.01432,69861.0,69857.0,0.0144]
[1771089185803,0.01432,69863.0,69857.0,0.0144]
[1771089185804,0.03069638,69866.0,69858.0,0.014321]
[1771089186002,0.03069638,69866.0,69859.0,0.01432]
[1771089186003,0.014319,69866.0,69859.0,0.01432]
[1771089186308,0.014319,69868.0,69859.0,0.01432]
[1771089186507,0.01432,69863.0,69857.0,0.0144]
[1771089187202,0.014319,69868.0,69862.0,0.01432]
[1771089187402,0.01432,69864.0,69858.0,0.014321]
[1771089187602,0.01432,69864.0,69859.0,0.01432]
[1771089188201,0.04501538,69864.0,69853.0,0.0144]
[1771089188800,0.12425152,69864.0,69853.0,0.0144]
[1771089189398,0.09363614,69863.0,69839.0,0.06967147]
[1771089189604,0.014322,69854.0,69846.0,0.014323]
[1771089189809,0.014321,69855.0,69848.0,0.014323]
[1771089190009,0.014321,69855.0,69849.0,0.14332]
[1771089190213,0.014321,69857.0,69850.0,0.014322]
[1771089190408,0.014321,69857.0,69851.0,0.0144]
[1771089190608,0.014321,69857.0,69852.0,0.014322]
[1771089190809,0.014321,69856.0,69851.0,0.0144]
[1771089191307,0.07923614,69870.0,69853.0,0.014322]
[1771089191498,0.01432,69861.0,69854.0,0.014321]
[1771089191703,0.014321,69859.0,69855.0,0.0144]
[1771089192007,0.01432,69860.0,69855.0,0.0144]
[1771089192512,0.01432,69862.0,69855.0,0.028721]
[1771089193006,0.01432,69860.0,69855.0,0.028721]
[1771089193206,0.01392,69862.0,69855.0,0.028721]
[1771089193405,0.01432,69859.0,69855.0,0.0144]
[1771089193605,0.01392,69862.0,69855.0,0.0144]
[1771089194299,0.01392,69862.0,69856.0,0.0144]
[1771089195010,0.09355514,69864.0,69856.0,0.0144]
[1771089195409,0.07923614,69864.0,69856.0,0.0144]
[1771089195606,0.0144,69866.0,69857.0,0.014321]
[1771089195800,0.0144,69866.0,69858.0,0.01432]
[1771089196000,0.0144,69866.0,69859.0,0.01432]
[1771089196399,0.0144,69866.0,69858.0,0.014321]
[1771089197410,0.0144,69866.0,69856.0,0.0144]
[1771089197626,0.09195335,69866.0,69856.0,0.0144]
[1771089198215,0.0144,69866.0,69857.0,0.014321]
[1771089199607,0.0144,69866.0,69858.0,0.014321]
[1771089199815,0.0144,69866.0,69857.0,0.014321]
[1771089200008,0.0144,69866.0,69856.0,0.0144]
[1771089200313,0.09195335,69866.0,69856.0,0.0144]
[1771089201706,0.0144,69866.0,69856.0,0.0144]
[1771089202115,0.0144,69866.0,69856.0,0.028721]
[1771089202711,0.09195335,69869.0,69856.0,0.028721]
[1771089203118,0.09195335,69869.0,69856.0,0.043042]
[1771089203415,0.09195335,69869.0,69857.0,0.014321]
[1771089203613,0.0144,69869.0,69860.0,0.01432]
[1771089203812,0.0144,69869.0,69861.0,0.02872]
[1771089204313,0.0144,69869.0,69861.0,0.0144]
[1771089204616,0.09195335,69872.0,69861.0,0.02872]
[1771089204815,0.57316,69895.0,69862.0,0.00597082]
[1771089205122,0.07755335,69911.0,69853.0,0.14328]
[1771089205123,0.07755335,69900.0,69878.0,0.014317]
[1771089205316,0.07755335,69893.0,69879.0,0.15768]
[1771089205611,0.07755335,69893.0,69880.0,0.0144]
[1771089205809,0.07755335,69891.0,69880.0,0.0144]
[1771089206009,0.07755335,69888.0,69880.0,0.0144]
[1771089206715,0.20446862,69887.0,69881.0,0.0144]
[1771089207115,0.36869176,69885.0,69881.0,0.0144]
[1771089207617,0.36869176,69884.0,69880.0,0.0144]
[1771089207818,0.20446862,69887.0,69878.0,0.14328]
[1771089208117,0.07755335,69888.0,69878.0,0.14328]
[1771089208317,0.07755335,69888.0,69879.0,0.0144]
[1771089208510,0.07755335,69886.0,69879.0,0.0144]
[1771089209113,0.36869176,69885.0,69879.0,0.0144]
[1771089209314,0.07755335,69886.0,69879.0,0.0144]
[1771089209513,0.09195335,69886.0,69869.0,0.157558]
[1771089209818,0.07755335,69879.0,69870.0,0.0144]
[1771089210714,0.36869176,69877.0,69871.0,0.014318]
[1771089210916,0.20446862,69880.0,69868.0,0.014319]
[1771089211116,0.20446862,69876.0,69869.0,0.0144]
[1771089211305,0.20446862,69876.0,69869.0,0.028718]
[1771089211511,0.20446862,69876.0,69865.0,0.14324]
[1771089211512,0.07755335,69875.0,69865.0,0.14324]
[1771089211816,0.07755335,69875.0,69860.0,0.01432]
[1771089212021,0.07755335,69875.0,69861.0,0.15764]
[1771089212517,0.07755335,69873.0,69861.0,0.15764]
[1771089212820,0.09195335,69873.0,69862.0,0.0144]
[1771089213112,0.0144,69873.0,69864.0,0.014319]
[1771089213311,0.07755335,69872.0,69864.0,0.0144]
[1771089213514,0.07755335,69872.0,69859.0,0.14324]
[1771089213711,0.07755335,69870.0,69860.0,0.0144]
[1771089214419,0.07755335,69868.0,69860.0,0.0144]
[1771089215219,0.07755335,69867.0,69853.0,0.014322]
[1771089215513,0.07755335,69867.0,69856.0,0.014321]
[1771089215719,0.07755335,69867.0,69854.0,0.15764]
[1771089216018,0.07755335,69866.0,69855.0,0.028721]
[1771089216318,0.46064511,69866.0,69855.0,0.028721]
[1771089216515,0.09195335,69866.0,69855.0,0.028721]
[1771089216812,0.44624511,69865.0,69856.0,0.0144]
[1771089217013,0.28202197,69865.0,69857.0,0.0144]
[1771089217408,0.36869176,69863.0,69858.0,0.014321]
[1771089217818,0.36869176,69861.0,69859.0,0.01432]
[1771089218010,0.20446862,69863.0,69859.0,0.01432]
[1771089218212,0.0144,69866.0,69857.0,0.0144]
[1771089218519,0.0144,69866.0,69863.0,0.01432]
[1771089218520,0.36869176,69864.0,69863.0,0.01432]
[1771089218720,7.6e-07,69864.0,69863.0,0.01432]
[1771089218920,0.0144,69869.0,69865.0,0.014319]
[1771089219814,0.014318,69870.0,69863.0,0.01432]
[1771089220021,0.15764,69871.0,69862.0,0.0144]
[1771089220314,0.014318,69869.0,69862.0,0.0144]
[1771089220618,0.014319,69867.0,69862.0,0.02872]
[1771089220814,0.014319,69865.0,69862.0,0.0144]
[1771089221418,0.014319,69866.0,69862.0,0.0144]
[1771089221618,0.014319,69865.0,69862.0,0.0144]
[1771089222116,0.014319,69866.0,69862.0,0.0144]
[1771089222621,0.014319,69866.0,69862.0,0.02872]
[1771089222818,0.014317,69876.0,69868.0,0.014319]
[1771089223023,0.014317,69875.0,69870.0,0.014318]
[1771089223209,0.014317,69875.0,69870.0,0.028636]
[1771089223414,0.014317,69875.0,69870.0,0.014318]
[1771089223621,0.07415516,69875.0,69863.0,0.14324]
[1771089223922,0.014319,69866.0,69862.0,0.02872]
[1771089224124,0.014319,69866.0,69862.0,0.0144]
[1771089225415,0.014319,69866.0,69862.0,0.02872]
[1771089225616,0.014319,69865.0,69862.0,0.0144]
[1771089225814,0.08847416,69867.0,69861.0,0.0144]
[1771089226016,0.014319,69866.0,69861.0,0.02872]
[1771089226523,0.014319,69866.0,69862.0,0.01432]
[1771089226722,0.014319,69866.0,69861.0,0.02872]
[1771089226924,0.014319,69865.0,69861.0,0.02872]
[1771089227124,0.014319,69865.0,69861.0,0.0144]
[1771089227324,0.014319,69865.0,69861.0,0.02872]
[1771089227818,0.014319,69865.0,69861.0,0.0144]
[1771089228215,0.08847416,69867.0,69861.0,0.0144]
[1771089228216,0.014319,69866.0,69861.0,0.0144]
[1771089228414,0.014319,69865.0,69861.0,0.0144]
[1771089228613,0.01432,69864.0,69861.0,0.0144]
[1771089228816,0.01432,69860.0,69856.0,0.14324]
[1771089229021,0.01432,69860.0,69857.0,0.0144]
[1771089230623,0.014321,69855.0,69845.0,0.014323]
[1771089230823,0.014321,69855.0,69849.0,0.014322]
[1771089231028,0.014322,69854.0,69850.0,0.0144]
[1771089231228,0.014322,69853.0,69850.0,0.0144]
[1771089231630,0.014322,69852.0,69850.0,0.0144]
[1771089231927,0.014322,69852.0,69834.0,0.14324]
[1771089231928,0.014324,69841.0,69834.0,0.14324]
[1771089232124,0.014324,69841.0,69835.0,0.0144]
[1771089232326,0.014324,69840.0,69835.0,0.028725]
[1771089232526,0.014324,69840.0,69836.0,0.014325]
[1771089232822,0.014324,69841.0,69835.0,0.028725]
[1771089233025,0.014324,69841.0,69836.0,0.014325]
[1771089233225,0.014324,69841.0,69837.0,0.014325]
[1771089233419,0.028648,69841.0,69836.0,0.014325]
[1771089233626,0.014324,69841.0,69836.0,0.014325]
[1771089233824,0.013924,69841.0,69836.0,0.014325]
[1771089234027,0.014324,69842.0,69836.0,0.014325]
[1771089234228,0.0144,69845.0,69843.0,0.014324]
[1771089234427,0.0144,69845.0,69841.0,0.014324]
[1771089234428,0.0144,69845.0,69842.0,0.014324]
[1771089234622,0.0144,69845.0,69844.0,0.014324]
[1771089234823,0.157563,69849.0,69844.0,0.014324]
[1771089234824,0.0144,69846.0,69845.0,0.014323]
[1771089235229,0.028723,69848.0,69843.0,0.014324]
[1771089237435,0.0144,69848.0,69844.0,0.014323]
[1771089239138,0.07415516,69856.0,69843.0,0.0144]
[1771089239434,0.014322,69851.0,69846.0,0.014323]
[1771089239628,0.028722,69851.0,69846.0,0.014323]
[1771089239824,0.0144,69851.0,69846.0,0.014323]
[1771089240029,0.0144,69851.0,69847.0,0.014323]
[1771089240534,0.028722,69851.0,69847.0,0.014323]
[1771089240738,0.014323,69847.0,69843.0,0.0144]
[1771089240927,0.014323,69848.0,69843.0,0.0144]
[1771089241129,0.014323,69846.0,69843.0,0.0144]
[1771089241424,0.014323,69847.0,69843.0,0.028724]
[1771089241629,0.0144,69851.0,69847.0,0.014323]
[1771089242032,0.0144,69851.0,69849.0,0.014323]
[1771089242329,0.0144,69850.0,69849.0,0.014323]
[1771089242534,0.08847716,69854.0,69849.0,0.014323]
[1771089242730,0.014322,69852.0,69847.0,0.014323]
[1771089242933,0.014322,69851.0,69847.0,0.014323]
[1771089243133,0.028722,69850.0,69846.0,0.014323]
[1771089243335,0.0144,69849.0,69846.0,0.014323]
[1771089243536,0.0144,69850.0,69847.0,0.014323]
[1771089243937,0.0144,69850.0,69849.0,0.014323]
[1771089244438,0.0144,69850.0,69846.0,0.014323]
[1771089244632,0.157599,69866.0,69852.0,0.014322]
[1771089244835,0.01432,69864.0,69859.0,0.01432]
[1771089245026,0.014319,69866.0,69859.0,0.0144]
[1771089245226,0.01432,69864.0,69859.0,0.0144]
[1771089245433,0.01432,69863.0,69859.0,0.0144]
[1771089245731,0.0144,69867.0,69859.0,0.0144]
[1771089245930,0.028718,69869.0,69864.0,0.014319]
[1771089246129,0.07415516,69889.0,69871.0,0.04909331]
[1771089246329,0.07415516,69889.0,69872.0,0.0144]
[1771089246330,0.014317,69876.0,69872.0,0.0144]
[1771089246737,0.014317,69878.0,69873.0,0.014318]
[1771089247037,0.028632,69880.0,69875.0,0.014317]
[1771089247231,0.014317,69877.0,69874.0,0.0144]
[1771089247436,0.014316,69880.0,69875.0,0.014317]
[1771089247738,0.014316,69879.0,69874.0,0.028717]
[1771089248237,0.014316,69881.0,69874.0,0.0144]
[1771089248431,0.014316,69881.0,69874.0,0.028717]
[1771089248632,0.0144,69883.0,69875.0,0.014317]
[1771089248932,0.014316,69882.0,69877.0,0.014317]
[1771089249128,0.014316,69881.0,69876.0,0.014317]
[1771089249536,0.014313,69895.0,69877.0,0.15768]
[1771089249837,0.014315,69889.0,69881.0,0.014316]
[1771089250033,0.014315,69885.0,69882.0,0.0144]
[1771089250233,0.014315,69885.0,69883.0,0.0144]
[1771089250433,0.014314,69891.0,69885.0,0.014315]
[1771089250634,0.014314,69891.0,69884.0,0.014315]
[1771089250941,0.014314,69891.0,69886.0,0.014315]
[1771089251540,0.014314,69891.0,69884.0,0.014315]
[1771089251739,0.014314,69891.0,69885.0,0.014315]
[1771089251940,0.014314,69889.0,69884.0,0.014315]
[1771089252435,0.014314,69890.0,69884.0,0.014315]
[1771089253335,0.014315,69887.0,69882.0,0.014316]
[1771089253535,0.014314,69889.0,69883.0,0.028715]
[1771089253730,0.014314,69891.0,69883.0,0.0144]
[1771089253929,0.0144,69892.0,69888.0,0.014314]
[1771089254540,0.028714,69892.0,69886.0,0.014315]
[1771089254743,0.014314,69891.0,69885.0,0.014315]
[1771089254935,0.014314,69891.0,69886.0,0.014315]
[1771089255442,0.0144,69892.0,69883.0,0.028715]
[1771089255739,0.028714,69892.0,69883.0,0.0144]
[1771089255940,0.0144,69892.0,69887.0,0.014315]
[1771089256343,0.028714,69892.0,69888.0,0.014315]
[1771089256538,0.0144,69892.0,69885.0,0.014315]
[1771089256844,0.0144,69892.0,69889.0,0.014314]
[1771089257036,0.0144,69892.0,69890.0,0.014314]
[1771089257648,0.0144,69892.0,69883.0,0.05389833]
[1771089257649,0.07512176,69914.0,69896.0,0.03948664]
[1771089257844,0.014311,69903.0,69896.0,0.0144]
[1771089258046,0.014311,69903.0,69897.0,0.014313]
[1771089258237,0.0144,69907.0,69898.0,0.014312]
[1771089258438,0.014311,69903.0,69898.0,0.014312]
[1771089258741,0.0144,69907.0,69898.0,0.014312]
[1771089258943,0.014312,69901.0,69896.0,0.0144]
[1771089259142,0.0144,69907.0,69898.0,0.014312]
[1771089259338,0.014311,69904.0,69897.0,0.014313]
[1771089259646,0.014311,69903.0,69898.0,0.0144]
[1771089260036,0.014311,69903.0,69897.0,0.028713]
[1771089260240,0.014311,69904.0,69898.0,0.014312]
[1771089260445,0.028622,69904.0,69898.0,0.014312]
[1771089260634,0.014311,69904.0,69898.0,0.014312]
[1771089260833,0.014311,69903.0,69898.0,0.014312]
[1771089261233,0.014311,69904.0,69899.0,0.014312]
[1771089261646,0.014311,69904.0,69900.0,0.014312]
[1771089261845,0.014311,69904.0,69899.0,0.014312]
[1771089262041,0.014311,69905.0,69900.0,0.014312]
[1771089262342,0.14861531,69914.0,69905.0,0.014311]
[1771089262544,0.14861531,69914.0,69904.0,0.014311]
[1771089262545,0.01431,69910.0,69904.0,0.014311]
[1771089262739,0.01431,69909.0,69905.0,0.0144]
[1771089263739,0.01431,69911.0,69905.0,0.028711]
[1771089264049,0.0144,69914.0,69907.0,0.01431]
[1771089264448,0.0144,69914.0,69905.0,0.028711]
[1771089264946,0.0144,69914.0,69906.0,0.014311]
[1771089265151,0.0144,69914.0,69905.0,0.0144]
[1771089265741,0.07512176,69916.0,69905.0,0.0144]
[1771089265947,0.08943176,69916.0,69905.0,0.0144]
[1771089266751,0.08943176,69916.0,69906.0,0.0144]
[1771089267252,0.07512176,69915.0,69906.0,0.0144]
[1771089267753,0.07512176,69913.0,69906.0,0.0144]
[1771089268050,0.07512176,69913.0,69905.0,0.0144]
[1771089268446,0.07512176,69913.0,69904.0,0.0144]
[1771089268642,0.1467536,69922.0,69902.0,0.014312]
[1771089268847,1.71875278,70033.0,69879.0,0.71584]
[1771089268848,0.08952176,69921.0,69903.0,0.0144]
[1771089269042,0.08952176,69921.0,69903.0,0.014311]
[1771089269452,0.08952176,69921.0,69902.0,0.014312]
[1771089269655,0.08952176,69921.0,69903.0,0.014311]
[1771089269951,0.08952176,69921.0,69902.0,0.014312]
[1771089270148,0.08952176,69921.0,69897.0,0.0144]
[1771089270446,0.07512176,69919.0,69885.0,0.0144]
[1771089270852,0.07512176,69917.0,69880.0,0.014316]
[1771089271042,0.07512176,69915.0,69891.0,0.014314]
[1771089271246,0.07512176,69915.0,69885.0,0.028715]
[1771089271446,0.07512176,69913.0,69887.0,0.014315]
[1771089271651,0.07512176,69910.0,69887.0,0.014315]
[1771089271850,0.014313,69896.0,69890.0,0.014314]
[1771089272047,0.07512176,69907.0,69897.0,0.014313]
[1771089272048,0.014312,69902.0,69897.0,0.014313]
[1771089272248,0.0144,69903.0,69898.0,0.014312]
[1771089272451,0.014311,69907.0,69900.0,0.014312]
[1771089272746,0.0144,69906.0,69897.0,0.014313]
[1771089272953,0.0144,69906.0,69901.0,0.014312]
[1771089273256,0.014311,69906.0,69901.0,0.014312]
[1771089273957,0.014311,69906.0,69899.0,0.014312]
[1771089274159,0.08952176,69909.0,69900.0,0.0144]
[1771089275055,0.22306108,69917.0,69900.0,0.028712]
[1771089275255,0.08952176,69916.0,69903.0,0.014311]
[1771089276148,0.08952176,69916.0,69900.0,0.028712]
[1771089276354,0.08952176,69916.0,69901.0,0.014312]
[1771089276953,0.08952176,69916.0,69891.0,0.014314]
[1771089277155,0.07512176,69915.0,69890.0,0.0144]
[1771089277353,0.07512176,69915.0,69890.0,0.028714]
[1771089277554,0.07512176,69915.0,69890.0,0.0144]
[1771089277761,0.07512176,69915.0,69897.0,0.014313]
[1771089278057,0.07512176,69915.0,69899.0,0.014312]
[1771089278254,0.0144,69914.0,69905.0,0.014311]
[1771089278561,0.1432,69917.0,69907.0,0.014311]
[1771089278562,0.01431,69912.0,69907.0,0.014311]
[1771089278857,0.0144,69912.0,69908.0,0.01431]
[1771089279360,0.01431,69910.0,69904.0,0.014311]
[1771089279557,0.01431,69908.0,69902.0,0.014311]
[1771089279862,0.0144,69912.0,69901.0,0.014312]
[1771089280054,0.08952176,69912.0,69900.0,0.0144]
[1771089280256,0.08952176,69912.0,69899.0,0.0144]
[1771089281155,0.08952176,69912.0,69894.0,0.0144]
[1771089281355,0.08952176,69912.0,69894.0,0.028713]
[1771089281562,0.08952176,69912.0,69892.0,0.014314]
[1771089281757,0.08952176,69912.0,69892.0,0.028714]
[1771089281960,0.08952176,69912.0,69894.0,0.014313]
[1771089282163,0.08952176,69912.0,69894.0,0.028626]
[1771089282460,0.014314,69892.0,69887.0,0.014315]
[1771089282665,0.014314,69893.0,69885.0,0.0144]
[1771089282960,0.014314,69892.0,69886.0,0.014315]
[1771089283164,0.014314,69891.0,69886.0,0.014315]
[1771089283662,0.014314,69891.0,69885.0,0.0144]
[1771089283864,0.014315,69888.0,69885.0,0.0144]
[1771089284060,0.014314,69892.0,69886.0,0.014315]
[1771089284460,0.0144,69895.0,69892.0,0.014314]
[1771089284666,0.0144,69895.0,69886.0,0.014315]
[1771089284856,0.014312,69899.0,69893.0,0.014313]
[1771089285057,0.014312,69899.0,69889.0,0.014314]
[1771089285058,0.0144,69905.0,69896.0,0.08738177]
[1771089285366,0.0144,69905.0,69900.0,0.014312]
[1771089285565,0.0144,69907.0,69905.0,0.014311]
[1771089285765,0.0144,69907.0,69903.0,0.014311]
[1771089286060,0.014311,69906.0,69901.0,0.014312]
[1771089286261,0.1576,69911.0,69901.0,0.0144]
[1771089286761,0.014311,69904.0,69901.0,0.0144]
[1771089286957,0.014312,69899.0,69894.0,0.014313]
[1771089287160,0.014313,69896.0,69891.0,0.014314]
[1771089287362,0.014313,69896.0,69892.0,0.0144]
[1771089287562,0.014313,69896.0,69887.0,0.014315]
[1771089287563,0.09985052,69899.0,69882.0,0.014316]
[1771089287764,0.014314,69893.0,69888.0,0.014314]
[1771089288069,0.014314,69891.0,69887.0,0.014315]
[1771089288262,0.014314,69891.0,69885.0,0.028715]
[1771089288263,0.014314,69893.0,69888.0,0.014314]
[1771089288663,0.014314,69892.0,69886.0,0.014315]
[1771089288868,0.0144,69894.0,69893.0,0.014314]
[1771089289163,0.0144,69894.0,69891.0,0.014314]
[1771089289364,0.0144,69897.0,69894.0,0.014313]
[1771089290270,0.0144,69897.0,69891.0,0.014314]
[1771089290271,0.014313,69896.0,69891.0,0.014314]
[1771089290467,0.0144,69897.0,69892.0,0.014314]
[1771089290868,0.0144,69897.0,69894.0,0.014313]
[1771089291063,0.0144,69897.0,69895.0,0.014313]
[1771089291364,0.0144,69897.0,69890.0,0.014314]
[1771089291365,0.028713,69897.0,69892.0,0.014314]
[1771089291569,0.014313,69896.0,69891.0,0.014314]
[1771089291969,0.014313,69896.0,69892.0,0.0144]
[1771089292267,0.01431,69910.0,69892.0,0.0144]
[1771089292467,0.014312,69902.0,69897.0,0.028626]
[1771089292665,0.1432,69908.0,69906.0,0.014311]
[1771089292970,0.0144,69907.0,69906.0,0.014311]
[1771089293563,0.0144,69907.0,69904.0,0.014311]
[1771089293765,0.02871,69909.0,69904.0,0.014311]
[1771089294369,0.01431,69908.0,69903.0,0.014311]
[1771089295173,0.02871,69909.0,69903.0,0.014311]